fUSD/lending_fUSD_20251206
["ID","MTS","AMOUNT","RATE_DAILY","PERIOD"]
[396595116,1765065058832,-500.0,0.00016712,2]
[396595117,1765065058842,-500.0,0.00016712,2]
[396595118,1765065058851,-2027.37,0.00016712,2]
[396595119,1765065058863,-500.0,0.00016712,2]
[396595120,1765065058872,-500.0,0.00016712,2]
[396595121,1765065058882,-151.0,0.00016712,2]
[396595122,1765065058893,-500.0,0.00016712,2]
[396595123,1765065058904,-511.31933018,0.00016712,2]
[396595124,1765065058913,-151.0,0.00016712,2]
[396595125,1765065058922,-500.0,0.00016712,2]
[396595126,1765065058932,-500.0,0.00016712,2]
[396595127,1765065058942,-500.0,0.00016712,2]
[396595128,1765065058951,-236.54413,0.00016712,2]
[396595129,1765065058960,-500.0,0.00016712,2]
[396595130,1765065058970,-236.54413,0.00016712,2]
[396595131,1765065058979,-500.0,0.00016712,2]
[396595132,1765065058988,-500.0,0.00016712,2]
[396595133,1765065059000,-236.54413,0.00016712,2]
[396595134,1765065059008,-236.54413,0.00016712,2]
[396595135,1765065059018,-500.0,0.00016712,2]
[396595136,1765065059027,-500.0,0.00016712,2]
[396595137,1765065059036,-151.0,0.00016712,2]
[396595138,1765065059045,-500.0,0.00016712,2]
[396595139,1765065059054,-500.0,0.00016712,2]
[396595140,1765065059063,-208.542286,0.00016712,2]
[396595141,1765065059072,-151.0,0.00016712,2]
[396595142,1765065059081,-500.0,0.00016712,2]
[396595143,1765065059090,-500.0,0.00016712,2]
[396595144,1765065059099,-500.0,0.00016712,2]
[396595145,1765065059108,-500.0,0.00016712,2]
[396595146,1765065059117,-537.56,0.00016712,2]
[396595147,1765065059125,-500.0,0.00016712,2]
[396595148,1765065059134,-500.0,0.00016712,2]
[396595149,1765065059144,-2030.02,0.00016712,2]
[396595150,1765065059152,-541.47587758,0.00016712,2]
[396595151,1765065059161,-247.928709,0.00016712,2]
[396595152,1765065059170,-500.0,0.00016712,2]
[396595153,1765065059179,-274.873322,0.00016712,2]
[396595154,1765065059188,-913.31,0.00016712,2]
[396595155,1765065059197,-274.873322,0.00016712,2]
[396595156,1765065059206,-274.873322,0.00016712,2]
[396595157,1765065059215,-274.873322,0.00016712,2]
[396595158,1765065059224,-500.0,0.00016712,2]
[396595159,1765065059232,-210.74053073,0.00016712,2]
[396595160,1765065059242,-500.0,0.00016712,2]
[396595161,1765065059251,-500.0,0.00016712,2]
[396595162,1765065059260,-750.11,0.00016712,2]
[396595163,1765065059271,-500.0,0.00016712,2]
[396595164,1765065059281,-500.0,0.00016712,2]
[396595165,1765065059292,-500.0,0.00016712,2]
[396595166,1765065059302,-500.0,0.00016712,2]
[396595167,1765065059312,-1789.91,0.00016712,2]
[396595168,1765065059324,-781.21,0.00016712,2]
[396595169,1765065059336,-500.0,0.00016712,2]
[396595170,1765065059345,-500.0,0.00016712,2]
[396595171,1765065059355,-500.0,0.00016712,2]
[396595172,1765065059365,-2720.5,0.00016712,2]
[396595173,1765065059375,-500.0,0.00016712,2]
[396595174,1765065059385,-151.0,0.00016712,2]
[396595175,1765065059394,-500.0,0.00016712,2]
[396595176,1765065059404,-151.0,0.00016712,2]
[396595177,1765065059413,-151.0,0.00016712,2]
[396595178,1765065059422,-151.0,0.00016712,2]
[396595179,1765065059431,-151.0,0.00016712,2]
[396595180,1765065059441,-500.0,0.00016712,2]
[396595181,1765065059450,-151.0,0.00016712,2]
[396595182,1765065059459,-500.0,0.00016712,2]
[396595183,1765065059468,-675.96,0.00016712,2]
[396595184,1765065059477,-151.0,0.00016712,2]
[396595185,1765065059487,-564.37,0.00016712,2]
[396595186,1765065059497,-151.0,0.00016712,2]
[396595187,1765065059507,-500.0,0.00016712,2]
[396595188,1765065059517,-500.0,0.00016712,2]
[396595189,1765065059527,-500.0,0.00016712,2]
[396595190,1765065059536,-500.0,0.00016712,2]
[396595191,1765065059546,-151.0,0.00016712,2]
[396595192,1765065059555,-151.0,0.00016712,2]
[396595193,1765065059565,-500.0,0.00016712,2]
[396595194,1765065059575,-151.0,0.00016712,2]
[396595195,1765065059585,-151.0,0.00016712,2]
[396595196,1765065059595,-500.0,0.00016712,2]
[396595197,1765065059605,-2308.2,0.00016712,2]
[396595198,1765065059615,-500.0,0.00016712,2]
[396595199,1765065059626,-1002.83,0.00016712,2]
[396595200,1765065059635,-151.0,0.00016712,2]
[396595201,1765065059644,-247.06018432,0.00016712,2]
[396595202,1765065059653,-500.0,0.00016712,2]
[396595203,1765065059663,-151.0,0.00016712,2]
[396595204,1765065059676,-151.0,0.00016712,2]
[396595205,1765065059685,-1878.33,0.00016712,2]
[396595206,1765065059694,-1973.13,0.00016712,2]
[396595207,1765065059703,-500.0,0.00016712,2]
[396595208,1765065059713,-500.0,0.00016712,2]
[396595209,1765065059727,-500.0,0.00016712,2]
[396595210,1765065059736,-151.0,0.00016712,2]
[396595211,1765065059749,-985.782157,0.00016712,2]
[396595212,1765065059759,-985.782157,0.00016712,2]
[396595213,1765065059770,-823.65,0.00016712,2]
[396595214,1765065059780,-985.782157,0.00016712,2]
[396595215,1765065059791,-985.782157,0.00016712,2]
[396595216,1765065059801,-151.0,0.00016712,2]
[396595217,1765065059811,-985.782157,0.00016712,2]
[396595218,1765065059820,-500.0,0.00016712,2]
[396595219,1765065059829,-985.782157,0.00016712,2]
[396595220,1765065059839,-500.0,0.00016712,2]
[396595221,1765065059848,-500.0,0.00016712,2]
[396595222,1765065059857,-985.782157,0.00016712,2]
[396595223,1765065059866,-500.0,0.00016712,2]
[396595224,1765065059876,-985.782157,0.00016712,2]
[396595225,1765065059885,-500.0,0.00016712,2]
[396595226,1765065059894,-500.0,0.00016712,2]
[396595227,1765065059904,-569.55,0.00016712,2]
[396595228,1765065059913,-500.0,0.00016712,2]
[396595229,1765065059922,-672.04,0.00016712,2]
[396595230,1765065059931,-500.0,0.00016712,2]
[396595231,1765065059944,-300.0,0.00016712,2]
[396595232,1765065059953,-1935.84,0.00016712,2]
[396595233,1765065059962,-500.0,0.00016712,2]
[396595234,1765065059972,-151.0,0.00016712,2]
[396595235,1765065059982,-151.0,0.00016712,2]
[396595236,1765065059992,-670.39,0.00016712,2]
[396595237,1765065060001,-151.0,0.00016712,2]
[396595238,1765065060010,-500.0,0.00016712,2]
[396595239,1765065060019,-151.0,0.00016712,2]
[396595240,1765065060028,-151.0,0.00016712,2]
[396595241,1765065060037,-151.0,0.00016712,2]
[396595242,1765065060046,-151.0,0.00016712,2]
[396595243,1765065060056,-500.0,0.00016712,2]
[396595244,1765065060066,-232.788135,0.00016712,2]
[396595245,1765065060075,-500.0,0.00016712,2]
[396595246,1765065060084,-500.0,0.00016712,2]
[396595247,1765065060094,-500.0,0.00016712,2]
[396595248,1765065060103,-151.0,0.00016712,2]
[396595249,1765065060112,-151.0,0.00016712,2]
[396595250,1765065060121,-500.0,0.00016712,2]
[396595251,1765065060131,-1843.85,0.00016712,2]
[396595252,1765065060140,-2386.35,0.00016712,2]
[396595253,1765065060149,-500.0,0.00016712,2]
[396595254,1765065060159,-500.0,0.00016712,2]
[396595255,1765065060168,-151.0,0.00016712,2]
[396595256,1765065060178,-500.0,0.00016712,2]
[396595257,1765065060187,-165.544672,0.00016712,2]
[396595258,1765065060196,-151.0,0.00016712,2]
[396595259,1765065060206,-165.544672,0.00016712,2]
[396595260,1765065060215,-151.0,0.00016712,2]
[396595261,1765065060225,-500.0,0.00016712,2]
[396595262,1765065060234,-165.544672,0.00016712,2]
[396595263,1765065060243,-500.0,0.00016712,2]
[396595264,1765065060252,-165.544672,0.00016712,2]
[396595265,1765065060261,-165.544672,0.00016712,2]
[396595266,1765065060270,-165.544672,0.00016712,2]
[396595267,1765065060279,-535.70231159,0.00016712,2]
[396595268,1765065060936,-1406.78768841,0.00016712,2]
[396595269,1765065060946,-165.544672,0.00016712,2]
[396595270,1765065060956,-516.43,0.00016712,2]
[396595271,1765065060966,-165.544672,0.00016712,2]
[396595272,1765065060976,-2496.6,0.00016712,2]
[396595273,1765065060985,-4215.91,0.00016712,2]
[396595274,1765065060995,-500.0,0.00016712,2]
[396595275,1765065061004,-2419.53,0.00016712,2]
[396595276,1765065061013,-601.2,0.00016712,2]
[396595277,1765065061023,-500.0,0.00016712,2]
[396595278,1765065061032,-500.0,0.00016712,2]
[396595279,1765065061042,-500.0,0.00016712,2]
[396595280,1765065061052,-500.0,0.00016712,2]
[396595281,1765065061061,-2351.15,0.00016712,2]
[396595282,1765065061071,-610.17,0.00016712,2]
[396595283,1765065061080,-578.23,0.00016712,2]
[396595284,1765065061089,-500.0,0.00016712,2]
[396595285,1765065061098,-500.0,0.00016712,2]
[396595286,1765065061107,-500.0,0.00016712,2]
[396595287,1765065061116,-500.0,0.00016712,2]
[396595288,1765065061126,-500.0,0.00016712,2]
[396595289,1765065061135,-500.0,0.00016712,2]
[396595290,1765065061144,-2031.41,0.00016712,2]
[396595291,1765065061154,-505.59,0.00016712,2]
[396595292,1765065061163,-503.8290201,0.00016712,2]
[396595293,1765065061173,-500.0,0.00016712,2]
[396595294,1765065061183,-500.0,0.00016712,2]
[396595295,1765065061193,-500.0,0.00016712,2]
[396595296,1765065061202,-500.0,0.00016712,2]
[396595297,1765065061212,-500.0,0.00016712,2]
[396595298,1765065061223,-684.97,0.00016712,2]
[396595299,1765065061233,-151.0,0.00016712,2]
[396595300,1765065061243,-151.0,0.00016712,2]
[396595301,1765065061253,-500.0,0.00016712,2]
[396595302,1765065061263,-151.0,0.00016712,2]
[396595303,1765065061272,-151.0,0.00016712,2]
[396595304,1765065061282,-151.0,0.00016712,2]
[396595305,1765065061292,-151.0,0.00016712,2]
[396595306,1765065061301,-500.0,0.00016712,2]
[396595307,1765065061311,-500.0,0.00016712,2]
[396595308,1765065061321,-151.0,0.00016712,2]
[396595309,1765065061330,-151.0,0.00016712,2]
[396595310,1765065061340,-151.0,0.00016712,2]
[396595311,1765065061350,-500.0,0.00016712,2]
[396595312,1765065061359,-1027.61,0.00016712,2]
[396595313,1765065061369,-500.0,0.00016712,2]
[396595314,1765065061379,-284.474648,0.00016712,2]
[396595315,1765065061389,-151.0,0.00016712,2]
[396595316,1765065061398,-1925.47,0.00016712,2]
[396595317,1765065061408,-500.0,0.00016712,2]
[396595318,1765065061418,-500.0,0.00016712,2]
[396595319,1765065061428,-1017.31,0.00016712,2]
[396595320,1765065061438,-151.0,0.00016712,2]
[396595321,1765065061447,-151.0,0.00016712,2]
[396595322,1765065061457,-500.0,0.00016712,2]
[396595323,1765065061467,-151.0,0.00016712,2]
[396595324,1765065061476,-165.918863,0.00016712,2]
[396595325,1765065061486,-500.0,0.00016712,2]
[396595326,1765065061495,-500.0,0.00016712,2]
[396595327,1765065061505,-500.0,0.00016712,2]
[396595328,1765065061515,-500.0,0.00016712,2]
[396595329,1765065061524,-1817.28,0.00016712,2]
[396595330,1765065061534,-221.701919,0.00016712,2]
[396595331,1765065061543,-221.701919,0.00016712,2]
[396595332,1765065061553,-155.866511,0.00016712,2]
[396595333,1765065061563,-500.0,0.00016712,2]
[396595334,1765065061572,-510.66,0.00016712,2]
[396595335,1765065061584,-500.0,0.00016712,2]
[396595336,1765065061594,-221.701919,0.00016712,2]
[396595337,1765065061604,-500.0,0.00016712,2]
[396595338,1765065061613,-500.0,0.00016712,2]
[396595339,1765065061623,-221.701919,0.00016712,2]
[396595340,1765065061632,-281.66687347,0.00016712,2]
[396595341,1765065061642,-500.0,0.00016712,2]
[396595342,1765065061651,-226.36671537,0.00016712,2]
[396595343,1765065061661,-597.44,0.00016712,2]
[396595344,1765065061671,-500.0,0.00016712,2]
[396595345,1765065061683,-541.16,0.00016712,2]
[396595346,1765065061692,-500.0,0.00016712,2]
[396595347,1765065061702,-502.27831511,0.00016712,2]
[396595348,1765065061711,-500.0,0.00016712,2]
[396595349,1765065061722,-184.1,0.00016712,2]
[396595350,1765065061732,-500.0,0.00016712,2]
[396595351,1765065061742,-1839.25,0.00016712,2]
[396595352,1765065061753,-500.0,0.00016712,2]
[396595353,1765065061763,-500.0,0.00016712,2]
[396595354,1765065061772,-500.0,0.00016712,2]
[396595355,1765065061782,-500.0,0.00016712,2]
[396595356,1765065061791,-500.0,0.00016712,2]
[396595357,1765065061801,-500.0,0.00016712,2]
[396595358,1765065061810,-2127.53,0.00016712,2]
[396595359,1765065061819,-500.0,0.00016712,2]
[396595360,1765065061829,-2705.8,0.00016712,2]
[396595361,1765065061839,-2233.77,0.00016712,2]
[396595362,1765065061850,-500.0,0.00016712,2]
[396595363,1765065061859,-1509.87,0.00016712,2]
[396595364,1765065061868,-151.000016,0.00016712,2]
[396595365,1765065061878,-500.0,0.00016712,2]
[396595366,1765065061887,-500.0,0.00016712,2]
[396595367,1765065061898,-2103.4,0.00016712,2]
[396595368,1765065061908,-500.0,0.00016712,2]
[396595369,1765065061919,-500.0,0.00016712,2]
[396595370,1765065061929,-1094.13,0.00016712,2]
[396595371,1765065061940,-500.0,0.00016712,2]
[396595372,1765065061949,-500.0,0.00016712,2]
[396595373,1765065061959,-500.0,0.00016712,2]
[396595374,1765065061970,-500.0,0.00016712,2]
[396595375,1765065061979,-199.866157,0.00016712,2]
[396595376,1765065061988,-500.0,0.00016712,2]
[396595377,1765065061998,-500.0,0.00016712,2]
[396595378,1765065062008,-500.0,0.00016712,2]
[396595379,1765065062017,-615.3413631,0.00016712,2]
[396595380,1765065062028,-2198.18,0.00016712,2]
[396595381,1765065062037,-199.866157,0.00016712,2]
[396595382,1765065062047,-793.75,0.00016712,2]
[396595383,1765065062056,-199.866157,0.00016712,2]
[396595384,1765065062065,-251.41576039,0.00016712,2]
[396595385,1765065062075,-500.0,0.00016712,2]
[396595386,1765065062085,-199.866157,0.00016712,2]
[396595387,1765065062096,-171.141905,0.00016712,2]
[396595388,1765065062106,-500.0,0.00016712,2]
[396595389,1765065062116,-500.0,0.00016712,2]
[396595390,1765065062126,-500.0,0.00016712,2]
[396595391,1765065062136,-654.89,0.00016712,2]
[396595392,1765065062145,-500.0,0.00016712,2]
[396595393,1765065062156,-330.793777,0.00016712,2]
[396595394,1765065062167,-151.0,0.00016712,2]
[396595395,1765065062176,-330.793777,0.00016712,2]
[396595396,1765065062186,-2052.9,0.00016712,2]
[396595397,1765065062196,-151.0,0.00016712,2]
[396595398,1765065062207,-500.0,0.00016712,2]
[396595399,1765065062218,-500.0,0.00016712,2]
[396595400,1765065062228,-330.793777,0.00016712,2]
[396595401,1765065062237,-240.572356,0.00016712,2]
[396595402,1765065062248,-500.0,0.00016712,2]
[396595403,1765065062258,-330.793777,0.00016712,2]
[396595404,1765065062268,-240.572356,0.00016712,2]
[396595405,1765065062278,-500.0,0.00016712,2]
[396595406,1765065062288,-500.0,0.00016712,2]
[396595407,1765065062297,-1154.4,0.00016712,2]
[396595408,1765065062307,-240.572356,0.00016712,2]
[396595409,1765065062317,-607.1,0.00016712,2]
[396595410,1765065062328,-1975.87,0.00016712,2]
[396595411,1765065062337,-670.8,0.00016712,2]
[396595412,1765065062347,-240.572356,0.00016712,2]
[396595413,1765065062356,-500.0,0.00016712,2]
[396595414,1765065062365,-500.0,0.00016712,2]
[396595415,1765065062376,-500.0,0.00016712,2]
[396595416,1765065062385,-500.0,0.00016712,2]
[396595417,1765065062395,-500.0,0.00016712,2]
[396595418,1765065062406,-500.0,0.00016712,2]
[396595419,1765065062418,-500.0,0.00016712,2]
[396595420,1765065062428,-536.96007657,0.00016712,2]
[396595421,1765065062437,-500.0,0.00016712,2]
[396595422,1765065062447,-500.0,0.00016712,2]
[396595423,1765065062457,-568.52588495,0.00016712,2]
[396595424,1765065062467,-500.0,0.00016712,2]
[396595425,1765065062476,-611.9,0.00016712,2]
[396595426,1765065062486,-500.0,0.00016712,2]
[396595427,1765065062496,-500.0,0.00016712,2]
[396595428,1765065062506,-500.0,0.00016712,2]
[396595429,1765065062515,-502.96,0.00016712,2]
[396595430,1765065062525,-500.0,0.00016712,2]
[396595431,1765065062534,-500.0,0.00016712,2]
[396595432,1765065062544,-500.0,0.00016712,2]
[396595433,1765065062553,-1877.42,0.00016712,2]
[396595434,1765065062563,-500.0,0.00016712,2]
[396595435,1765065062572,-500.0,0.00016712,2]
[396595436,1765065062582,-782.03,0.00016712,2]
[396595437,1765065062592,-2184.93,0.00016712,2]
[396595438,1765065062601,-1922.01,0.00016712,2]
[396595439,1765065062611,-500.0,0.00016712,2]
[396595440,1765065062621,-554.58,0.00016712,2]
[396595441,1765065062631,-732.91,0.00016712,2]
[396595442,1765065062641,-500.0,0.00016712,2]
[396595443,1765065062652,-151.0,0.00016712,2]
[396595444,1765065062662,-425.60504475,0.00016712,2]
[396595445,1765065062677,-500.0,0.00016712,2]
[396595446,1765065062687,-500.0,0.00016712,2]
[396595447,1765065062696,-500.0,0.00016712,2]
[396595448,1765065062706,-500.0,0.00016712,2]
[396595449,1765065062715,-502.94253642,0.00016712,2]
[396595450,1765065062725,-500.0,0.00016712,2]
[396595451,1765065062735,-500.0,0.00016712,2]
[396595452,1765065062745,-500.0,0.00016712,2]
[396595453,1765065062754,-1555.65,0.00016712,2]
[396595454,1765065062764,-1823.0,0.00016712,2]
[396595455,1765065062774,-2225.81,0.00016712,2]
[396595456,1765065062784,-1297.51,0.00016712,2]
[396595457,1765065062794,-500.0,0.00016712,2]
[396595458,1765065062803,-1729.84,0.00016712,2]
[396595459,1765065062814,-500.0,0.00016712,2]
[396595460,1765065062823,-449.00327897,0.00016712,2]
[396595461,1765065062833,-500.0,0.00016712,2]
[396595462,1765065062843,-518.73877924,0.00016712,2]
[396595463,1765065062852,-500.0,0.00016712,2]
[396595464,1765065062863,-506.16,0.00016712,2]
[396595465,1765065062875,-1965.8,0.00016712,2]
[396595466,1765065062888,-500.0,0.00016712,2]
[396595467,1765065062902,-2267.84,0.00016712,2]
[396595468,1765065062914,-500.0,0.00016712,2]
[396595469,1765065062925,-151.0,0.00016712,2]
[396595470,1765065062935,-523.84,0.00016712,2]
[396595471,1765065062951,-500.0,0.00016712,2]
[396595472,1765065062961,-500.0,0.00016712,2]
[396595473,1765065062971,-500.0,0.00016712,2]
[396595474,1765065062981,-151.0,0.00016712,2]
[396595475,1765065062991,-500.0,0.00016712,2]
[396595476,1765065063000,-151.0,0.00016712,2]
[396595477,1765065063010,-500.0,0.00016712,2]
[396595478,1765065063019,-1091.22,0.00016712,2]
[396595479,1765065063028,-151.0,0.00016712,2]
[396595480,1765065063038,-500.0,0.00016712,2]
[396595481,1765065063409,-151.0,0.00016712,2]
[396595482,1765065063420,-671.31,0.00016712,2]
[396595483,1765065063430,-1454.08,0.00016712,2]
[396595484,1765065063440,-151.0,0.00016712,2]
[396595485,1765065063449,-151.0,0.00016712,2]
[396595486,1765065063459,-2310.03,0.00016712,2]
[396595487,1765065063468,-226.017633,0.00016712,2]
[396595488,1765065063477,-1905.67,0.00016712,2]
[396595489,1765065063487,-500.0,0.00016712,2]
[396595490,1765065063497,-500.0,0.00016712,2]
[396595491,1765065063507,-500.0,0.00016712,2]
[396595492,1765065063517,-503.94744766,0.00016712,2]
[396595493,1765065063526,-2051.6,0.00016712,2]
[396595494,1765065063535,-502.09113523,0.00016712,2]
[396595495,1765065063544,-2465.22,0.00016712,2]
[396595496,1765065063554,-500.0,0.00016712,2]
[396595497,1765065063563,-7446.73,0.00016712,2]
[396595498,1765065063573,-1805.03,0.00016712,2]
[396595499,1765065063582,-500.0,0.00016712,2]
[396595500,1765065063592,-500.0,0.00016712,2]
[396595501,1765065063601,-500.0,0.00016712,2]
[396595502,1765065063610,-500.0,0.00016712,2]
[396595503,1765065063620,-2049.81,0.00016712,2]
[396595504,1765065063630,-518.26639628,0.00016712,2]
[396595505,1765065063639,-151.0,0.00016712,2]
[396595506,1765065063648,-2488.97,0.00016712,2]
[396595507,1765065063658,-500.0,0.00016712,2]
[396595508,1765065063668,-2398.22,0.00016712,2]
[396595509,1765065063682,-151.0,0.00016712,2]
[396595510,1765065063692,-500.0,0.00016712,2]
[396595511,1765065063702,-500.0,0.00016712,2]
[396595512,1765065063711,-500.0,0.00016712,2]
[396595513,1765065063722,-500.0,0.00016712,2]
[396595514,1765065063732,-1419.44,0.00016712,2]
[396595515,1765065063741,-2023.24,0.00016712,2]
[396595516,1765065063751,-500.0,0.00016712,2]
[396595517,1765065063761,-1686.66,0.00016712,2]
[396595518,1765065063770,-875.36,0.00016712,2]
[396595519,1765065063780,-585.55,0.00016712,2]
[396595520,1765065063790,-500.0,0.00016712,2]
[396595521,1765065063799,-500.0,0.00016712,2]
[396595522,1765065063808,-2184.11,0.00016712,2]
[396595523,1765065063818,-1322.95,0.00016712,2]
[396595524,1765065063827,-500.0,0.00016712,2]
[396595525,1765065063836,-576.75,0.00016712,2]
[396595526,1765065063846,-500.0,0.00016712,2]
[396595527,1765065063855,-4448.06,0.00016712,2]
[396595528,1765065063865,-500.0,0.00016712,2]
[396595529,1765065063875,-2503.1,0.00016712,2]
[396595530,1765065063884,-310.55394461,0.00016712,2]
[396595531,1765065063893,-500.0,0.00016712,2]
[396595532,1765065063902,-500.0,0.00016712,2]
[396595533,1765065063911,-500.0,0.00016712,2]
[396595534,1765065063921,-502.66482999,0.00016712,2]
[396595535,1765065063931,-500.0,0.00016712,2]
[396595536,1765065063941,-517.39550906,0.00016712,2]
[396595537,1765065063954,-500.0,0.00016712,2]
[396595538,1765065063964,-500.0,0.00016712,2]
[396595539,1765065063974,-500.0,0.00016712,2]
[396595540,1765065063984,-2010.37,0.00016712,2]
[396595541,1765065063994,-500.0,0.00016712,2]
[396595542,1765065064003,-500.0,0.00016712,2]
[396595543,1765065064012,-1000.0,0.00016712,2]
[396595544,1765065064022,-500.0,0.00016712,2]
[396595545,1765065064032,-500.0,0.00016712,2]
[396595546,1765065064041,-500.0,0.00016712,2]
[396595547,1765065064050,-500.0,0.00016712,2]
[396595548,1765065064059,-3569.48,0.00016712,2]
[396595549,1765065064069,-493.591863,0.00016712,2]
[396595550,1765065064078,-500.0,0.00016712,2]
[396595551,1765065064089,-500.0,0.00016712,2]
[396595552,1765065064099,-500.0,0.00016712,2]
[396595553,1765065064109,-500.0,0.00016712,2]
[396595554,1765065064118,-500.0,0.00016712,2]
[396595555,1765065064128,-493.591863,0.00016712,2]
[396595556,1765065064137,-500.0,0.00016712,2]
[396595557,1765065064146,-3131.16,0.00016712,2]
[396595558,1765065064157,-500.0,0.00016712,2]
[396595559,1765065064166,-500.0,0.00016712,2]
[396595560,1765065064176,-151.0,0.00016712,2]
[396595561,1765065064186,-500.0,0.00016712,2]
[396595562,1765065064197,-493.591863,0.00016712,2]
[396595563,1765065064207,-596.85125885,0.00016712,2]
[396595564,1765065064218,-500.0,0.00016712,2]
[396595565,1765065064228,-493.591863,0.00016712,2]
[396595566,1765065064237,-876.33,0.00016712,2]
[396595567,1765065064247,-2453.21,0.00016712,2]
[396595568,1765065064258,-500.0,0.00016712,2]
[396595569,1765065064268,-500.0,0.00016712,2]
[396595570,1765065064278,-1085.04,0.00016712,2]
[396595571,1765065064289,-500.0,0.00016712,2]
[396595572,1765065064299,-500.0,0.00016712,2]
[396595573,1765065064309,-428.899887,0.00016712,2]
[396595574,1765065064319,-1931.39,0.00016712,2]
[396595575,1765065064329,-500.0,0.00016712,2]
[396595576,1765065064338,-500.0,0.00016712,2]
[396595577,1765065064347,-500.0,0.00016712,2]
[396595578,1765065064357,-428.899887,0.00016712,2]
[396595579,1765065064366,-151.0,0.00016712,2]
[396595580,1765065064375,-428.899887,0.00016712,2]
[396595581,1765065064385,-500.0,0.00016712,2]
[396595582,1765065064394,-2181.94,0.00016712,2]
[396595583,1765065064403,-2238.68,0.00016712,2]
[396595584,1765065064412,-500.0,0.00016712,2]
[396595585,1765065064422,-428.899887,0.00016712,2]
[396595586,1765065064431,-500.0,0.00016712,2]
[396595587,1765065064441,-393.80133,0.00016712,2]
[396595588,1765065064450,-500.0,0.00016712,2]
[396595589,1765065064459,-500.0,0.00016712,2]
[396595590,1765065064468,-393.80133,0.00016712,2]
[396595591,1765065064477,-2290.17,0.00016712,2]
[396595592,1765065064486,-500.0,0.00016712,2]
[396595593,1765065064496,-393.80133,0.00016712,2]
[396595594,1765065064505,-500.0,0.00016712,2]
[396595595,1765065064514,-151.0,0.00016712,2]
[396595596,1765065064523,-604.97,0.00016712,2]
[396595597,1765065064532,-500.0,0.00016712,2]
[396595598,1765065064541,-393.80133,0.00016712,2]
[396595599,1765065064550,-500.0,0.00016712,2]
[396595600,1765065064559,-500.0,0.00016712,2]
[396595601,1765065064569,-569.31,0.00016712,2]
[396595602,1765065064578,-151.0,0.00016712,2]
[396595603,1765065064587,-500.0,0.00016712,2]
[396595604,1765065064596,-500.0,0.00016712,2]
[396595605,1765065064606,-500.0,0.00016712,2]
[396595606,1765065064615,-2529.66,0.00016712,2]
[396595607,1765065064624,-151.0,0.00016712,2]
[396595608,1765065064633,-558.68,0.00016712,2]
[396595609,1765065064642,-500.0,0.00016712,2]
[396595610,1765065064651,-2100.97,0.00016712,2]
[396595611,1765065064661,-550.83,0.00016712,2]
[396595612,1765065064671,-2059.52,0.00016712,2]
[396595613,1765065064683,-500.0,0.00016712,2]
[396595614,1765065064693,-500.0,0.00016712,2]
[396595615,1765065064703,-619.14209758,0.00016712,2]